bitfinex-derivatives/quotes_ETHF0:USTF0_20250115
["timestamp","ask_amount","ask_price","bid_price","bid_amount"]
[1736913670691,3.25649801,3248.1,3247.9,40.8]
[1736913670887,3.25649801,3248.0,3247.9,40.8]
[1736913671193,3.26887495,3248.1,3247.9,40.8]
[1736913671389,3.26887495,3248.4,3247.9,40.8]
[1736913671595,3.96767,3248.5,3247.9,40.8]
[1736913671793,3.6597,3248.5,3247.9,40.8]
[1736913672096,3.33349007,3248.4,3248.2,3.2078]
[1736913672302,3.33349007,3248.4,3247.9,40.8]
[1736913672303,0.30798,3248.5,3247.9,40.8]
[1736913672493,3.64145007,3248.6,3247.9,40.8]
[1736913672685,0.30794,3248.8,3247.9,40.8]
[1736913672890,3.2078,3248.9,3248.4,3.2078]
[1736913673094,3.2078,3249.3,3248.5,0.30796]
[1736913673296,3.2078,3249.3,3248.4,3.2078]
[1736913673297,3.2078,3249.3,3248.4,6.57320624]
[1736913673492,3.2078,3249.3,3248.4,3.2078]
[1736913673685,0.30791,3249.1,3248.4,3.2078]
[1736913673884,3.33657221,3249.2,3248.4,3.2078]
[1736913674495,0.4687,3249.6,3248.4,3.2078]
[1736913674496,0.4687,3249.6,3249.0,3.2078]
[1736913674793,0.30788,3249.5,3249.0,3.2078]
[1736913674996,3.2078,3249.8,3249.0,3.2078]
[1736913675296,3.46977272,3249.7,3249.0,3.2078]
[1736913675495,3.2078,3249.8,3249.0,3.2078]
[1736913676000,3.51565,3249.8,3249.0,3.2078]
[1736913676394,3.51565,3249.8,3249.0,3.51572]
[1736913676395,3.2078,3249.8,3249.0,3.51572]
[1736913676595,3.2078,3249.8,3249.0,3.2078]
[1736913676897,0.30786,3249.7,3249.0,3.2078]
[1736913677094,3.27990419,3249.7,3249.0,3.2078]
[1736913677599,0.30788,3249.5,3249.0,3.2078]
[1736913677999,3.27990419,3249.7,3249.0,3.2078]
[1736913678197,0.30791,3249.1,3249.0,3.2078]
[1736913678592,0.30797,3248.6,3248.4,3.2078]
[1736913678788,3.27922974,3249.1,3248.5,40.8]
[1736913678789,0.4745,3249.0,3248.5,40.8]
[1736913680095,3.2078,3249.4,3248.9,0.30793]
[1736913680301,3.2078,3250.2,3249.3,3.2078]
[1736913680500,0.30784,3249.9,3249.3,3.2078]
[1736913680700,0.30785,3249.8,3249.3,3.2078]
[1736913680903,0.30784,3249.9,3249.4,40.8]
[1736913681102,0.30787,3249.5,3249.4,40.8]
[1736913681298,0.35706546,3249.5,3249.4,40.8]
[1736913681495,0.35706546,3249.5,3249.3,3.2078]
[1736913681496,0.30788,3249.4,3249.3,3.2078]
[1736913681801,0.30788,3249.4,3247.9,3.82430624]
[1736913681802,3.41147053,3249.4,3248.6,3.2078]
[1736913681996,3.41147053,3249.4,3249.0,3.2078]
[1736913681997,3.36227153,3249.4,3249.0,3.2078]
[1736913682194,3.2078,3249.2,3248.7,40.8]
[1736913682399,0.30794,3248.8,3248.7,40.8]
[1736913682695,3.36933051,3249.1,3248.7,40.8]
[1736913683099,0.4892,3249.6,3249.0,3.2078]
[1736913683297,0.30782,3250.1,3249.5,3.2078]
[1736913683699,3.21161364,3250.0,3249.5,3.2078]
[1736913683899,0.30785,3249.8,3249.5,3.2078]
[1736913684097,3.21161364,3250.0,3249.5,3.2078]
[1736913684303,0.30787,3249.6,3249.5,3.2078]
[1736913684605,3.57327327,3249.6,3249.5,3.2078]
[1736913684796,0.3079,3249.3,3249.1,3.2078]
[1736913685197,3.46818918,3249.2,3249.1,3.2078]
[1736913685404,3.77608918,3249.2,3249.1,3.2078]
[1736913685606,0.3079,3249.3,3249.1,3.2078]
[1736913685799,3.2078,3250.3,3249.1,3.2078]
[1736913686007,3.43884171,3249.6,3249.5,3.2078]
[1736913686208,3.43884171,3250.2,3249.5,3.2078]
[1736913686403,0.4771,3250.3,3249.5,3.2078]
[1736913686706,0.3078,3250.4,3249.9,3.2078]
[1736913687004,0.30783,3250.0,3249.9,3.2078]
[1736913687508,0.30786,3249.7,3249.4,3.2078]
[1736913687901,0.30786,3249.7,3249.6,40.8]
[1736913688104,0.30783,3250.0,3249.6,40.8]
[1736913688305,0.4771,3250.3,3249.6,40.8]
[1736913688502,0.30784,3249.9,3249.6,40.8]
[1736913688704,0.4771,3250.3,3249.8,0.30784]
[1736913688901,3.2078,3250.4,3250.0,3.2078]
[1736913689098,14.45140624,3251.6,3250.0,3.2078]
[1736913689099,0.4853,3251.0,3250.0,6.57320624]
[1736913689407,3.30334147,3250.9,3250.8,3.2078]
[1736913689710,0.4853,3251.5,3250.8,3.2078]
[1736913690002,3.3432583,3251.3,3251.2,3.2078]
[1736913690404,0.79299,3251.5,3251.2,3.2078]
[1736913690707,0.30766,3251.8,3251.2,3.51551]
[1736913690922,0.4853,3252.2,3251.2,3.2078]
[1736913691208,3.2530616,3251.7,3251.2,3.2078]
[1736913691511,0.4853,3252.2,3251.3,0.3077]
[1736913691702,3.2530616,3251.7,3251.2,3.51551]
[1736913692002,3.5607316,3251.7,3251.2,3.51551]
[1736913692311,3.22828936,3251.6,3251.2,3.51551]
[1736913692513,3.22828936,3251.6,3251.2,3.2078]
[1736913692806,0.4853,3252.2,3251.2,3.2078]
[1736913693107,0.3077,3251.3,3251.2,3.2078]
[1736913693408,3.2078,3251.6,3250.9,40.8]
[1736913693608,4.10978922,3251.9,3250.9,40.8]
[1736913693609,0.04916374,3251.5,3250.9,40.8]
[1736913693810,3.34063922,3251.5,3250.9,40.8]
[1736913694204,0.30774,3250.9,3250.8,3.2078]
[1736913694507,0.54176563,3251.4,3250.8,3.2078]
[1736913694508,0.30773,3251.0,3250.8,3.2078]
[1736913694897,0.30774,3250.9,3250.8,3.2078]
[1736913695702,3.39510546,3251.3,3250.8,3.2078]
[1736913696008,0.30773,3251.0,3250.8,3.2078]
[1736913696205,0.30772,3251.2,3250.8,3.2078]
[1736913696405,3.2078,3251.6,3250.8,3.2078]
[1736913696605,0.79118,3252.7,3251.5,3.2078]
[1736913696907,3.2078,3252.9,3252.4,3.2078]
[1736913697310,0.477,3253.5,3252.4,3.2078]
[1736913697614,0.30748,3253.7,3253.2,3.2078]
[1736913698003,3.73523579,3253.7,3253.2,3.2078]
[1736913698204,0.30749,3253.6,3253.2,3.2078]
[1736913698410,3.73523579,3253.7,3253.2,3.2078]
[1736913698707,0.30748,3253.7,3253.2,3.2078]
[1736913698909,0.30749,3253.6,3253.2,3.2078]
[1736913699112,3.29908704,3253.6,3253.2,3.2078]
[1736913699411,0.002,3254.0,3253.4,3.36540624]
[1736913699603,0.002,3254.0,3253.8,3.2078]
[1736913699803,0.30747,3253.9,3253.4,3.2078]
[1736913700007,0.002,3254.0,3253.8,3.2078]
[1736913700202,0.002,3254.0,3253.8,44.0078]
[1736913700501,0.002,3254.0,3252.9,3.36540624]
[1736913700502,3.28170734,3253.9,3253.4,3.2078]
[1736913700808,0.30749,3253.6,3253.4,3.2078]
[1736913701105,3.68311565,3253.5,3253.4,3.2078]
[1736913701310,3.37561565,3253.5,3253.0,3.2078]
[1736913701499,3.2078,3253.7,3253.0,3.2078]
[1736913701805,0.30753,3253.2,3252.6,3.2078]
[1736913702112,0.30752,3253.3,3252.6,3.2078]
[1736913702316,3.2078,3253.7,3252.6,3.2078]
[1736913702606,3.44539056,3253.2,3252.6,3.2078]
[1736913702804,3.2078,3253.7,3252.6,3.2078]
[1736913702805,0.30755,3253.0,3252.6,3.2078]
[1736913703008,3.31892271,3253.5,3252.6,3.2078]
[1736913703209,3.31892271,3252.9,3252.6,3.2078]
[1736913703412,0.30754,3253.0,3252.6,3.2078]
[1736913703613,4.5868,3253.7,3252.6,3.2078]
[1736913703814,3.31892271,3252.9,3252.6,3.2078]
[1736913704001,4.5868,3253.7,3252.6,3.2078]
[1736913704307,0.30756,3252.9,3252.6,3.2078]
[1736913704703,0.4948,3253.4,3252.6,3.2078]
[1736913704904,3.45468618,3252.8,3252.6,3.2078]
[1736913705104,0.04913517,3253.3,3252.6,3.2078]
[1736913705105,3.29690654,3253.3,3252.6,3.2078]
[1736913705306,0.30757,3252.7,3252.6,3.2078]
[1736913706106,0.30759,3252.6,3252.3,40.8]
[1736913706310,0.3076,3252.4,3252.3,40.8]
[1736913706908,3.2078,3252.8,3252.3,40.8]
[1736913707321,0.3076,3252.4,3252.3,40.8]
[1736913707511,3.49789442,3252.7,3252.3,40.8]
[1736913707711,3.49789442,3252.7,3252.3,44.0078]
[1736913708015,0.00350044,3253.1,3252.3,44.0078]
[1736913708216,0.31104044,3253.1,3252.4,0.30759]
[1736913708518,3.27287746,3253.0,3252.3,44.0078]
[1736913708816,0.30757,3252.8,3252.3,44.31541]
[1736913709012,3.27287746,3253.0,3252.3,44.0078]
[1736913709217,3.19944777,3252.7,3252.3,44.0078]
[1736913709420,0.30756,3252.9,3252.4,0.3076]
[1736913709713,0.31104044,3253.1,3252.5,0.30759]
[1736913709908,3.19944777,3252.8,3252.7,0.30757]
[1736913710110,0.30756,3252.9,3252.3,44.31541]
[1736913710419,0.00350044,3253.1,3252.3,44.0078]
[1736913710616,0.00350044,3253.1,3252.9,0.30755]
[1736913710817,3.45387181,3253.0,3252.8,3.2078]
[1736913711113,0.30755,3252.9,3252.8,3.2078]
[1736913711314,0.30757,3252.7,3252.4,3.2078]
[1736913711915,0.30758,3252.7,3252.4,3.2078]
[1736913712116,3.21130044,3253.1,3252.4,3.2078]
[1736913712320,0.04914083,3253.0,3252.4,3.2078]
[1736913712519,3.33783142,3252.6,3252.4,3.2078]
[1736913712817,4.58930044,3253.1,3252.4,3.2078]
[1736913713022,0.3076,3252.5,3252.4,3.2078]
[1736913713217,3.85615514,3252.5,3252.4,3.2078]
[1736913713418,4.31744514,3253.0,3252.0,3.2078]
[1736913713419,0.30763,3252.1,3252.0,3.2078]
[1736913714120,3.85618514,3252.1,3252.0,44.0078]
[1736913714322,3.85618514,3252.1,3252.0,40.8]
[1736913715125,3.54855514,3252.1,3252.0,40.8]
[1736913715314,3.54855514,3252.1,3251.6,3.2078]
[1736913715515,0.4561,3252.6,3252.0,3.2078]
[1736913715516,3.20700125,3252.2,3252.0,3.2078]
[1736913715719,0.4561,3252.6,3252.1,0.30763]
[1736913715921,0.30761,3252.4,3252.2,40.8]
[1736913716126,0.3076,3252.5,3252.2,40.8]
[1736913716316,0.30761,3252.3,3252.2,40.8]
[1736913716519,0.4561,3252.6,3252.2,40.8]
[1736913716520,3.469324,3252.5,3252.2,40.8]
[1736913716721,0.4561,3252.6,3252.3,0.30761]
[1736913717022,0.76368,3252.6,3252.2,40.8]
[1736913717217,0.4595,3252.8,3252.2,40.8]
[1736913717418,3.2078,3252.9,3252.6,0.30758]
[1736913717622,0.30756,3252.8,3252.3,0.76141]
[1736913717828,3.53528247,3252.8,3252.5,0.30759]
[1736913718230,0.30757,3252.7,3252.2,41.10762]
[1736913718422,3.53528247,3252.8,3252.2,40.8]
[1736913718720,3.53528247,3252.8,3252.4,3.5154]
[1736913719024,3.53528247,3252.8,3252.4,3.2078]
[1736913719218,0.30759,3252.5,3252.4,3.2078]
[1736913719620,3.78767375,3252.5,3252.4,3.2078]
[1736913720221,0.46920044,3253.1,3252.4,3.2078]
[1736913720521,0.46920044,3253.1,3252.5,0.30759]
[1736913720522,3.32804583,3253.0,3252.5,0.30759]
[1736913720821,3.32804583,3253.0,3252.4,3.2078]
[1736913720822,3.32804583,3253.0,3252.7,0.30757]
[1736913721026,3.63559583,3253.0,3252.5,0.80609]
[1736913721225,3.63559583,3253.0,3252.4,3.2078]
[1736913721226,0.30759,3252.6,3252.4,3.2078]
[1736913721423,0.30759,3252.5,3252.4,3.2078]
[1736913721726,3.56440407,3252.5,3252.4,3.2078]
[1736913721928,0.30758,3252.7,3252.4,3.2078]
[1736913722330,3.30160722,3252.6,3252.4,3.2078]
[1736913722524,0.30759,3252.5,3252.4,3.2078]
[1736913722829,0.30759,3252.5,3251.7,3.2078]
[1736913722830,0.30766,3251.8,3251.7,3.2078]
[1736913723025,6.50940722,3252.5,3251.7,3.2078]
[1736913723325,6.50940722,3252.5,3252.1,3.2078]
[1736913723326,3.28727531,3252.3,3252.1,3.2078]
[1736913723727,3.2078,3252.8,3252.1,3.2078]
[1736913723923,0.04914387,3252.7,3251.8,40.8]
[1736913724124,6.45798479,3252.8,3251.8,44.16540624]
[1736913724325,0.30759,3252.5,3252.0,0.30764]
[1736913724524,0.30759,3252.5,3251.8,44.16540624]
[1736913724525,0.30759,3252.5,3252.1,3.2078]
[1736913724732,3.25018479,3252.7,3252.1,3.2078]
[1736913724935,0.30762,3252.2,3252.1,3.2078]
[1736913725126,3.48232082,3252.4,3252.1,3.2078]
[1736913725429,0.30761,3252.4,3252.1,3.2078]
[1736913725820,0.4853,3252.9,3252.1,3.2078]
[1736913726126,3.2078,3253.0,3252.5,3.51539]
[1736913726323,0.30756,3252.9,3252.5,3.2078]
[1736913726524,3.31166824,3252.9,3252.5,3.2078]
[1736913726732,0.30762,3252.2,3252.1,3.2078]
[1736913727121,0.30762,3252.3,3252.1,3.2078]
[1736913727328,0.30755,3253.0,3252.5,0.30759]
[1736913727528,0.30755,3253.0,3252.7,3.2078]
[1736913727934,0.30755,3253.0,3252.8,40.8]
[1736913728235,0.00350044,3253.1,3252.8,40.8]
[1736913728540,3.62508866,3252.9,3252.8,40.8]
[1736913728827,0.3076,3252.4,3252.3,3.2078]
[1736913729231,3.67481148,3252.4,3252.3,3.2078]
[1736913729425,0.00350044,3253.1,3252.3,3.2078]
[1736913729626,0.30756,3252.9,3252.4,0.7684]
[1736913729833,0.00350044,3253.1,3252.7,3.2078]
[1736913729834,3.67476148,3253.0,3252.7,3.2078]
[1736913730131,0.30756,3252.9,3252.8,40.8]
[1736913730631,0.30756,3252.8,3252.7,3.2078]
[1736913731130,3.6935,3252.9,3252.1,3.2078]
[1736913731329,3.48242363,3252.8,3252.1,3.2078]
[1736913731531,3.78999363,3252.8,3252.4,0.3076]
[1736913731731,0.30758,3252.7,3252.2,0.30762]
[1736913731931,0.30758,3252.7,3252.3,0.30761]
[1736913732127,0.00350044,3253.1,3253.0,0.30755]
[1736913732327,0.4843,3253.9,3253.0,6.57320624]
[1736913732530,0.4843,3253.9,3253.5,3.2078]
[1736913732935,0.002,3254.0,3253.5,3.2078]
[1736913733338,3.42729127,3253.8,3253.0,3.2078]
[1736913733636,0.30754,3253.1,3253.0,3.2078]
[1736913733836,3.2078,3253.4,3253.0,3.2078]
[1736913734038,0.30754,3253.1,3253.0,3.2078]
[1736913734236,4.38739127,3253.7,3253.0,6.57320624]
[1736913734237,3.22668616,3253.3,3253.0,6.57320624]
[1736913734440,0.002,3254.0,3253.0,7.95020624]
[1736913734631,0.002,3254.0,3253.6,3.2078]
[1736913734945,0.30746,3253.9,3253.6,3.2078]
[1736913735136,0.30746,3253.9,3253.7,40.8]
[1736913735331,0.30747,3253.9,3253.7,40.8]
[1736913735736,0.002,3254.0,3253.7,40.8]
[1736913735939,0.30754,3253.1,3252.8,3.2078]
[1736913736238,0.30756,3252.9,3252.8,3.2078]
[1736913736429,0.30756,3252.9,3252.5,40.8]
[1736913736635,3.75007191,3252.9,3252.5,40.8]
[1736913736832,0.30757,3252.8,3252.5,40.8]
[1736913737138,0.30758,3252.6,3252.5,40.8]
[1736913737537,3.57127185,3252.6,3252.5,40.8]
[1736913738038,8.31283741,3252.6,3251.8,3.2078]
[1736913738247,3.2078,3252.4,3251.8,3.2078]
[1736913738541,0.4511,3252.7,3252.2,3.2078]
[1736913738835,3.2078,3253.5,3252.6,3.2078]
[1736913738836,4.5848,3253.5,3252.6,3.2078]
[1736913739032,0.4511,3253.4,3252.2,3.2078]
[1736913739233,3.47205964,3252.6,3252.2,3.2078]
[1736913739431,3.47205964,3252.9,3252.2,3.2078]
[1736913739631,3.47205964,3252.9,3251.9,40.8]
[1736913739632,0.30759,3252.6,3252.0,3.2078]
[1736913739942,3.47205964,3252.5,3252.0,3.2078]
[1736913740139,3.47205964,3252.5,3252.1,0.30763]
[1736913740437,0.0491388,3252.9,3252.0,3.2078]
[1736913740637,0.30761,3252.4,3252.0,3.2078]
[1736913740836,3.44428233,3252.8,3252.0,3.2078]
[1736913741038,0.30759,3252.6,3252.0,3.2078]
[1736913741540,3.24287296,3252.5,3252.0,3.2078]
[1736913741737,0.3566988,3252.9,3252.3,0.30761]
[1736913742037,0.0491388,3252.9,3252.0,3.6746]
[1736913742237,3.35040803,3252.8,3252.0,3.6746]
[1736913742438,0.30759,3252.6,3252.0,3.98224]
[1736913742634,3.35040803,3252.8,3252.0,3.2078]
[1736913742832,0.30761,3252.4,3252.0,3.2078]
[1736913743036,3.35040803,3252.5,3252.0,3.51544]
[1736913743237,3.49321384,3252.8,3252.0,3.2078]
[1736913743437,0.0491388,3252.9,3252.0,3.2078]
[1736913743644,3.49321384,3252.5,3252.0,3.2078]
[1736913743943,0.3076,3252.5,3252.0,3.2078]
[1736913744338,3.5503281,3252.4,3252.0,3.2078]
[1736913744538,0.30763,3252.2,3252.0,3.2078]
[1736913744745,3.5503281,3252.8,3252.0,3.2078]
[1736913745036,0.30762,3252.3,3252.0,3.2078]
[1736913745435,2.90753278,3252.7,3252.0,3.2078]
[1736913745641,3.25784642,3252.2,3251.9,40.8]
[1736913745844,1.01204855,3252.1,3251.9,40.8]
[1736913746149,3.46832247,3252.2,3252.0,3.2078]
[1736913746344,0.3076,3252.5,3252.0,3.2078]
[1736913746538,0.3076,3252.5,3252.0,3.51544]
[1736913746840,3.46832247,3252.6,3252.4,3.2078]
[1736913747145,0.3076,3252.5,3252.0,3.2078]
[1736913747345,0.30759,3252.5,3252.4,40.8]
[1736913747740,3.46832247,3252.6,3252.4,40.8]
[1736913748040,0.30759,3252.5,3252.4,40.8]
[1736913748346,3.59772225,3252.5,3252.4,40.8]
[1736913748640,3.33927922,3252.5,3251.6,3.2078]
[1736913748842,0.30767,3251.7,3251.6,3.2078]
[1736913749033,3.2078,3252.3,3251.2,6.11533278]
[1736913749238,0.30768,3251.7,3251.6,40.8]
[1736913750244,3.83702344,3251.7,3251.6,40.8]
[1736913750746,3.88618245,3251.7,3251.6,40.8]
[1736913750940,8.88618245,3251.7,3251.6,40.8]
[1736913751245,0.76927,3251.4,3250.6,3.2078]
[1736913751439,0.30776,3250.7,3250.6,3.2078]
[1736913751641,3.51671672,3251.3,3250.6,3.51557]
[1736913751848,0.3077,3251.4,3251.0,3.2078]
[1736913752049,0.30773,3251.1,3251.0,3.2078]
[1736913752346,3.44730088,3251.1,3250.3,3.6669]
[1736913752537,0.30776,3250.8,3250.4,40.8]
[1736913752735,0.30776,3250.7,3250.4,40.8]
[1736913752935,0.76928,3251.3,3250.4,40.8]
[1736913753137,0.53217256,3251.2,3250.4,40.8]
[1736913753343,0.04917256,3251.1,3250.4,40.8]
[1736913753542,3.54212661,3251.1,3250.4,40.8]
[1736913753745,0.30776,3250.8,3250.4,40.8]
[1736913753941,0.30776,3250.7,3250.4,40.8]
[1736913754154,0.30778,3250.5,3250.4,40.8]
[1736913755448,3.70676121,3250.5,3250.4,40.8]
[1736913756043,3.44816076,3250.5,3249.9,3.2078]
[1736913756242,3.39898121,3250.5,3249.9,3.2078]
[1736913756439,0.30783,3250.0,3249.9,3.2078]
[1736913756644,3.97725348,3250.6,3249.9,3.2078]
[1736913756841,0.04918384,3250.5,3249.9,3.2078]
[1736913757045,0.30779,3250.4,3250.0,40.8]
[1736913757357,0.4825,3250.6,3250.0,40.8]
[1736913757358,0.30781,3250.2,3250.0,40.8]
[1736913757647,0.4825,3250.6,3250.0,40.8]
[1736913757848,3.43009105,3250.4,3250.3,3.2078]
[1736913758150,0.30778,3250.6,3250.3,3.2078]
[1736913758342,3.2078,3250.7,3250.3,3.2078]
[1736913758538,0.30775,3250.9,3250.3,3.5156]
[1736913758752,3.32685523,3250.6,3250.3,3.2078]
[1736913759052,0.30776,3250.8,3250.3,3.5156]
[1736913759444,3.24608211,3250.7,3250.3,3.2078]
[1736913759650,0.30778,3250.6,3250.3,3.2078]
[1736913759847,3.24608211,3250.9,3250.3,3.2078]
[1736913760144,0.30779,3250.4,3250.3,3.2078]
[1736913760446,0.30782,3250.1,3250.0,40.8]
[1736913760947,3.55727881,3250.1,3250.0,40.8]
[1736913761152,3.2078,3250.6,3250.0,40.8]
[1736913761452,3.75774832,3250.5,3250.2,3.2078]
[1736913761747,3.44995832,3250.5,3250.2,3.2078]
[1736913762445,0.3078,3250.3,3250.2,3.2078]
[1736913762646,0.30779,3250.4,3250.0,40.8]
[1736913762848,0.30782,3250.2,3250.0,40.8]
[1736913763952,3.2078,3250.5,3250.0,40.8]
[1736913763953,0.30782,3250.1,3250.0,40.8]
[1736913764150,3.87548415,3250.1,3250.0,40.8]
[1736913764448,0.30785,3249.8,3249.7,3.2078]
[1736913764848,0.30785,3249.8,3248.9,1.4456]
[1736913764849,3.4404009,3249.8,3249.2,3.2078]
[1736913765046,3.4404009,3249.8,3249.6,3.2078]
[1736913765255,0.30781,3250.2,3249.6,3.51566]
[1736913765555,3.36532076,3250.1,3249.6,3.51566]
[1736913765950,3.2078,3250.3,3249.6,3.2078]
[1736913766246,3.2078,3250.3,3249.4,2.90753278]
[1736913766247,0.4943,3250.5,3250.0,3.2078]
[1736913766447,0.4943,3250.5,3250.1,0.30782]
[1736913766654,0.4943,3250.5,3250.0,3.2078]
[1736913766655,3.28155965,3250.4,3250.0,3.2078]
[1736913766851,3.58935965,3250.4,3250.0,3.2078]
[1736913767053,3.28155965,3250.4,3250.0,3.2078]
[1736913767350,0.30782,3250.1,3250.0,3.2078]
[1736913768050,3.28155965,3250.4,3250.0,44.0078]
[1736913768450,3.28155965,3250.4,3250.1,0.30782]
[1736913768648,0.30781,3250.3,3250.0,44.0078]
[1736913768857,3.28155965,3250.4,3250.0,44.0078]
[1736913769053,3.2078,3250.8,3250.0,44.0078]
[1736913769352,3.2078,3251.2,3250.4,3.2078]
[1736913769548,3.51552,3251.2,3250.7,0.30776]
[1736913769746,0.93803426,3251.1,3250.5,0.4627]
[1736913769953,1.24576426,3251.1,3250.6,0.30777]
[1736913770151,0.93803426,3251.1,3250.5,0.4627]
[1736913770451,0.93803426,3251.1,3250.6,0.30777]
[1736913770658,0.93803426,3251.1,3250.8,3.2078]
[1736913771154,1.24576426,3251.1,3250.8,3.2078]
[1736913771950,0.93803426,3251.1,3250.8,3.2078]
[1736913772150,1.24576426,3251.1,3250.8,3.2078]
[1736913773351,0.93803426,3251.1,3250.8,3.2078]
[1736913773560,0.93803426,3251.1,3250.9,40.8]
[1736913774154,1.24576426,3251.1,3250.9,40.8]
[1736913774658,0.93803426,3251.1,3250.9,40.8]
[1736913775749,3.83983278,3251.8,3250.9,40.8]
[1736913775750,0.4774,3251.8,3250.9,40.8]
[1736913775950,0.78507,3251.8,3251.4,3.2078]
[1736913776151,3.70405921,3251.7,3251.4,3.2078]
[1736913776361,3.39637921,3251.7,3251.6,0.30768]
[1736913776562,3.39637921,3251.7,3251.5,0.30768]
[1736913776762,3.38459985,3252.1,3251.4,3.2078]
[1736913777062,0.30767,3251.8,3251.6,40.8]
[1736913777258,3.2078,3251.7,3251.6,40.8]
[1736913777462,6.77074452,3251.7,3251.6,40.8]
[1736913777760,6.77074452,3251.7,3250.8,1.8441]
[1736913777761,0.30772,3251.3,3250.8,1.381]
[1736913778058,3.25696321,3251.7,3250.9,0.30774]
[1736913778059,3.25527452,3251.2,3250.9,0.30774]
[1736913778259,3.25527452,3251.2,3250.9,40.8]
[1736913778260,3.56299452,3251.2,3250.9,40.8]
[1736913778564,3.2078,3251.3,3250.9,40.8]
[1736913778757,3.29534831,3251.1,3251.0,0.30774]
[1736913778958,3.2078,3251.3,3250.9,40.8]
[1736913779561,3.2584122,3251.2,3250.9,40.8]
[1736913780455,3.2584122,3251.2,3250.9,41.10774]
[1736913780857,3.2584122,3251.2,3250.9,40.8]
[1736913781159,2.90753278,3251.0,3250.9,40.8]
[1736913781359,3.2584122,3251.2,3250.3,0.3078]
[1736913781360,3.5661322,3251.2,3250.3,0.3078]
[1736913781564,0.30772,3251.2,3250.7,3.51556]
[1736913781766,3.5378677,3251.1,3250.8,40.8]
[1736913782158,3.2078,3251.3,3250.8,40.8]
[1736913782360,0.30773,3251.1,3250.8,40.8]
[1736913782558,3.2078,3251.3,3250.8,40.8]
[1736913782559,3.69803914,3251.2,3250.8,40.8]
[1736913782959,0.30774,3251.0,3250.8,40.8]
[1736913783161,3.39031914,3251.2,3250.8,40.8]
[1736913783162,3.51555,3250.9,3250.8,40.8]
[1736913783364,6.82597538,3250.9,3250.8,40.8]
[1736913783561,3.56472447,3250.9,3250.8,40.8]
[1736913783766,3.56472447,3250.9,3249.9,0.4634]
[1736913783767,0.30783,3250.0,3249.9,3.2078]
[1736913784159,3.26125091,3250.0,3249.9,44.0078]
[1736913784360,3.56908091,3250.0,3249.9,44.0078]
[1736913784672,0.30783,3250.0,3249.9,44.0078]
[1736913784878,3.52705108,3250.0,3249.9,44.0078]
[1736913786458,0.30788,3249.5,3249.4,3.2078]
[1736913787166,0.30788,3249.5,3249.4,44.0078]
[1736913787373,3.5126462,3249.5,3249.4,44.0078]
[1736913787668,3.5126462,3249.5,3249.4,40.8]
[1736913787867,3.2047662,3249.5,3249.4,40.8]
[1736913788076,0.9423,3249.9,3249.4,40.8]
[1736913788469,0.30788,3249.5,3249.4,40.8]
[1736913788769,3.56828824,3249.5,3249.4,40.8]
[1736913789066,3.30960936,3249.5,3248.9,3.2078]
[1736913789261,0.30793,3249.0,3248.9,3.2078]
[1736913789461,0.30793,3249.0,3248.9,44.0078]
[1736913789662,3.45816954,3249.0,3248.9,44.0078]
[1736913790067,0.30792,3249.1,3248.9,44.0078]
[1736913790273,3.58282249,3249.0,3248.9,44.0078]
[1736913790567,0.30793,3249.0,3248.9,40.8]
[1736913790966,3.58282249,3249.0,3248.9,40.8]
[1736913791364,3.27489249,3249.0,3248.5,3.2078]
[1736913791674,0.04920864,3248.9,3247.9,3.2078]
[1736913791973,0.30799,3248.4,3248.2,40.8]
[1736913792268,3.48077581,3248.3,3248.2,40.8]
[1736913792572,0.30799,3248.4,3248.2,40.8]
[1736913792774,6.60063278,3249.0,3248.2,40.8]
[1736913792775,3.48077581,3248.8,3248.2,40.8]
[1736913792975,3.2078,3249.0,3248.3,3.2078]
[1736913793161,3.2078,3249.0,3248.4,0.30798]
[1736913793162,3.48077581,3248.7,3248.4,0.30798]
[1736913793467,0.30799,3248.3,3248.2,40.8]
[1736913794168,0.3572133,3248.3,3248.2,40.8]
[1736913794369,3.74728168,3248.3,3248.2,40.8]
[1736913794570,4.20068168,3248.3,3248.2,40.8]
[1736913795769,4.20068168,3248.3,3247.2,3.2078]
[1736913795770,3.89269168,3248.3,3247.2,3.2078]
[1736913795975,3.2078,3248.0,3247.2,3.2078]
[1736913796167,3.2078,3248.0,3247.3,40.8]
[1736913796373,0.30808,3247.4,3247.3,40.8]
[1736913796766,3.2078,3247.6,3247.3,40.8]
[1736913796971,3.51587,3247.6,3247.3,40.8]
[1736913797373,3.2078,3247.6,3247.3,40.8]
[1736913798279,3.2078,3248.0,3247.3,40.8]
[1736913798470,0.30806,3247.6,3247.3,40.8]
[1736913798673,0.30808,3247.4,3247.3,40.8]
[1736913799077,3.49988064,3247.4,3247.3,40.8]
[1736913799273,6.14857029,3247.4,3246.5,0.4673]
[1736913799478,0.30814,3246.8,3246.5,0.4673]
[1736913799669,0.30813,3246.9,3246.5,0.4673]
[1736913799880,3.2078,3247.2,3246.6,41.10815]
[1736913800071,3.44792529,3247.1,3246.7,0.30814]
[1736913800680,3.44792529,3247.1,3246.6,41.10815]
[1736913800881,3.44792529,3247.1,3246.6,44.31595]
[1736913801379,3.75603529,3247.1,3246.6,44.31595]
[1736913801777,3.44792529,3247.1,3246.6,44.0078]
[1736913801975,0.30807,3247.5,3247.0,3.51591]
[1736913802180,0.30807,3247.5,3247.1,0.4958]
[1736913802373,3.2078,3248.0,3247.1,0.4958]
[1736913802576,0.30805,3247.8,3247.3,0.30809]